bitfinex/quotes_SOLUSD_20250616
["timestamp","ask_amount","ask_price","bid_price","bid_amount"]
[1750040009438,86.47770962,156.66,156.64,26.3195541]
[1750040009439,63.83736962,156.65,156.64,26.3195541]
[1750040009649,63.83736962,156.65,156.64,7.66990524]
[1750040010042,63.83736962,156.65,156.64,18.933972]
[1750040010223,63.83736962,156.65,156.64,26.60387724]
[1750040011334,7.0,156.66,156.65,18.64964886]
[1750040011648,7.0,156.74,156.66,0.28432314]
[1750040011821,14.66990524,156.74,156.68,7.66990524]
[1750040012344,14.66990524,156.74,156.66,18.933972]
[1750040012345,7.66990524,156.73,156.67,18.64964886]
[1750040012644,7.66990524,156.73,156.67,7.66990524]
[1750040012853,7.0,156.74,156.67,7.66990524]
[1750040013026,7.66990524,156.73,156.67,7.66990524]
[1750040013351,7.0,156.74,156.68,7.66990524]
[1750040013518,7.66990524,156.73,156.68,7.66990524]
[1750040013922,7.669905,156.79,156.69,0.28432314]
[1750040014122,9.3757805,156.82,156.69,0.28432314]
[1750040014123,7.66990524,156.77,156.71,18.64964886]
[1750040014333,7.0,156.81,156.69,7.95422838]
[1750040014334,7.66990524,156.75,156.69,7.95422838]
[1750040014534,7.66990524,156.74,156.69,7.95422838]
[1750040015452,26.0,156.78,156.69,0.74686284]
[1750040015753,26.0,156.78,156.69,0.4625397]
[1750040015754,7.66990524,156.7,156.69,0.4625397]
[1750040016262,7.0,156.71,156.69,0.4625397]
[1750040016443,7.66990524,156.7,156.69,0.4625397]
[1750040016634,7.95422838,156.7,156.69,0.4625397]
[1750040017242,7.95422838,156.7,156.55,1.6574]
[1750040017243,0.28432314,156.67,156.55,1.6574]
[1750040017445,7.66990524,156.61,156.56,7.66990524]
[1750040017652,7.66990524,156.6,156.55,1.6574]
[1750040017855,7.66990524,156.6,156.55,18.64964886]
[1750040018069,7.66990524,156.6,156.54,33.66990524]
[1750040018358,7.66990524,156.6,156.54,7.66990524]
[1750040018544,7.66990524,156.6,156.54,33.66990524]
[1750040018854,7.0,156.61,156.58,7.66990524]
[1750040019264,7.0,156.61,156.55,0.28432314]
[1750040019564,7.0,156.61,156.57,7.66990524]
[1750040021458,7.0,156.61,156.54,0.28432314]
[1750040021656,7.0,156.61,156.57,7.66990524]
[1750040022069,14.66990524,156.61,156.56,7.66990524]
[1750040022460,14.66990524,156.61,156.54,0.28432314]
[1750040022770,14.66990524,156.61,156.56,7.66990524]
[1750040022982,7.0,156.61,156.53,44.64964886]
[1750040023188,14.66990524,156.61,156.56,7.66990524]
[1750040023862,7.66990524,156.6,156.55,7.66990524]
[1750040024061,7.66990524,156.6,156.55,18.64964886]
[1750040024261,7.66990524,156.59,156.53,7.81206681]
[1750040024468,7.66990524,156.6,156.55,18.64964886]
[1750040024673,7.0,156.61,156.57,26.3195541]
[1750040025146,7.0,156.61,156.57,18.64964886]
[1750040025349,7.0,156.61,156.57,7.66990524]
[1750040025576,7.0,156.61,156.58,7.66990524]
[1750040025950,33.66990524,156.6,156.55,0.14216157]
[1750040026178,26.0,156.6,156.55,0.14216157]
[1750040026475,14.66990524,156.61,156.56,18.64964886]
[1750040026849,7.0,156.61,156.57,7.66990524]
[1750040027947,14.66990524,156.61,156.56,7.66990524]
[1750040028460,7.66990524,156.6,156.56,18.64964886]
[1750040028847,33.0,156.61,156.55,7.66990524]
[1750040029058,7.66990524,156.6,156.55,7.66990524]
[1750040029949,33.0,156.61,156.55,7.66990524]
[1750040030148,7.66990524,156.6,156.55,7.66990524]
[1750040030665,7.66990524,156.6,156.54,18.64964886]
[1750040030869,7.66990524,156.59,156.54,7.66990524]
[1750040031177,7.66990524,156.59,156.53,0.28432314]
[1750040031178,7.66990524,156.6,156.55,7.66990524]
[1750040031874,7.66990524,156.59,156.54,7.66990524]
[1750040032472,7.66990524,156.57,156.52,26.3195541]
[1750040032665,33.0,156.61,156.52,26.3195541]
[1750040032666,7.66990524,156.58,156.52,26.3195541]
[1750040033052,33.0,156.61,156.54,7.66990524]
[1750040033254,7.66990524,156.59,156.54,7.66990524]
[1750040033573,7.66990524,156.58,156.53,7.66990524]
[1750040033771,7.66990524,156.58,156.52,18.64964886]
[1750040033979,7.66990524,156.56,156.52,18.64964886]
[1750040034285,7.66990524,156.54,156.5,18.64964886]
[1750040035085,26.0,156.58,156.49,1.6574]
[1750040035275,7.66990524,156.54,156.5,18.64964886]
[1750040035780,7.66990524,156.55,156.5,26.3195541]
[1750040036671,7.66990524,156.55,156.5,18.64964886]
[1750040036996,6.5088,156.59,156.54,7.66990524]
[1750040036997,7.66990524,156.59,156.54,7.66990524]
[1750040037166,7.0,156.61,156.54,7.66990524]
[1750040037368,7.66990524,156.59,156.54,7.66990524]
[1750040037670,7.66990524,156.58,156.53,7.66990524]
[1750040038258,7.66990524,156.56,156.51,26.3195541]
[1750040038464,7.66990524,156.55,156.51,18.64964886]
[1750040039284,7.66990524,156.54,156.49,9.61162838]
[1750040039474,7.66990524,156.54,156.5,18.64964886]
[1750040039670,7.66990524,156.53,156.5,18.64964886]
[1750040040668,7.66990524,156.52,156.46,18.64964886]
[1750040040989,7.66990524,156.51,156.46,26.3195541]
[1750040041594,7.66990524,156.51,156.46,18.64964886]
[1750040041886,7.66990524,156.51,156.46,26.3195541]
[1750040042387,7.66990524,156.52,156.47,7.66990524]
[1750040042598,7.66990524,156.51,156.46,26.3195541]
[1750040043172,0.28432314,156.57,156.46,18.64964886]
[1750040043391,7.66990524,156.52,156.47,7.66990524]
[1750040044879,7.66990524,156.51,156.46,26.3195541]
[1750040045492,7.66990524,156.51,156.46,18.64964886]
[1750040045672,7.66990524,156.5,156.46,18.64964886]
[1750040046183,6.98,156.51,156.46,18.64964886]
[1750040046493,6.98,156.51,156.5,26.3195541]
[1750040046876,6.98,156.51,156.5,18.64964886]
[1750040047421,6.98,156.51,156.47,0.28432314]
[1750040047422,6.98,156.51,156.47,7.66990524]
[1750040047898,6.98,156.51,156.45,18.933972]
[1750040047899,6.98,156.51,156.48,26.3195541]
[1750040048079,7.66990524,156.53,156.48,26.3195541]
[1750040048274,26.0,156.56,156.44,101.27298965]
[1750040048275,40.64990524,156.56,156.51,7.66990524]
[1750040048476,32.98,156.56,156.49,0.28432314]
[1750040048678,40.64990524,156.56,156.51,7.66990524]
[1750040049499,40.64990524,156.56,156.5,7.66990524]
[1750040050092,6.98,156.56,156.52,7.66990524]
[1750040050282,6.98,156.56,156.54,7.66990524]
[1750040050476,6.98,156.56,156.52,18.933972]
[1750040050684,6.98,156.56,156.52,26.60387724]
[1750040050913,6.98,156.56,156.53,7.66990524]
[1750040051480,6.98,156.56,156.52,18.64964886]
[1750040051699,7.66990524,156.53,156.46,18.64964886]
[1750040051879,7.66990524,156.51,156.46,7.66990524]
[1750040052086,7.66990524,156.51,156.47,18.64964886]
[1750040052285,7.66990524,156.52,156.47,26.3195541]
[1750040052496,7.66990524,156.52,156.45,1.79702314]
[1750040052497,6.98,156.56,156.49,7.66990524]
[1750040052703,7.66990524,156.55,156.5,7.66990524]
[1750040053692,7.66990524,156.54,156.46,18.933972]
[1750040053904,7.66990524,156.54,156.49,7.66990524]
[1750040054206,6.98,156.56,156.52,7.66990524]
[1750040054939,6.98,156.56,156.49,0.28432314]
[1750040055106,6.98,156.56,156.52,7.66990524]
[1750040055401,7.66990524,156.53,156.48,18.64964886]
[1750040055590,7.66990524,156.51,156.46,18.64964886]
[1750040055789,7.66990524,156.51,156.46,26.3195541]
[1750040055990,7.66990524,156.5,156.45,1.5127]
[1750040056178,26.0,156.52,156.44,18.64964886]
[1750040056379,7.66990524,156.49,156.44,18.64964886]
[1750040056801,7.66990524,156.5,156.44,26.3195541]
[1750040057211,7.66990524,156.49,156.44,26.3195541]
[1750040057617,26.0,156.52,156.45,7.66990524]
[1750040057782,7.66990524,156.5,156.45,7.66990524]
[1750040058404,7.66990524,156.5,156.44,18.64964886]
[1750040058605,7.66990524,156.5,156.45,7.66990524]
[1750040058814,7.66990524,156.49,156.44,26.3195541]
[1750040059616,7.66990524,156.5,156.45,7.66990524]
[1750040059996,7.66990524,156.49,156.44,26.3195541]
[1750040060199,7.66990524,156.5,156.44,26.3195541]
[1750040060417,7.66990524,156.5,156.45,7.66990524]
[1750040061214,7.66990524,156.49,156.44,26.3195541]
[1750040061725,7.66990524,156.49,156.44,18.64964886]
[1750040061934,7.66990524,156.49,156.44,26.3195541]
[1750040062727,26.0,156.52,156.47,7.66990524]
[1750040063028,7.66990524,156.52,156.47,7.66990524]
[1750040063244,6.5861,156.55,156.43,32.91367702]
[1750040063245,7.66990524,156.55,156.5,26.3195541]
[1750040065419,32.98,156.56,156.5,26.3195541]
[1750040065618,7.66990524,156.55,156.5,26.3195541]
[1750040066628,7.66990524,156.54,156.5,18.64964886]
[1750040067698,7.66990524,156.53,156.46,18.64964886]
[1750040067903,7.66990524,156.51,156.46,26.3195541]
[1750040068322,7.66990524,156.5,156.44,18.64964886]
[1750040068533,26.0,156.51,156.44,26.3195541]
[1750040068534,7.66990524,156.49,156.44,26.3195541]
[1750040069521,7.66990524,156.49,156.44,18.64964886]
[1750040069723,7.66990524,156.49,156.44,7.66990524]
[1750040071718,26.0,156.51,156.45,26.3195541]
[1750040072035,7.66990524,156.5,156.46,7.66990524]
[1750040072245,7.66990524,156.5,156.44,18.64964886]
[1750040072541,7.66990524,156.49,156.44,26.3195541]
[1750040073041,26.0,156.51,156.44,26.3195541]
[1750040073236,7.66990524,156.49,156.44,26.3195541]
[1750040073610,26.0,156.51,156.44,26.3195541]
[1750040073839,7.66990524,156.5,156.45,7.66990524]
[1750040074954,26.0,156.51,156.45,7.66990524]
[1750040075124,7.66990524,156.5,156.45,7.66990524]
[1750040075947,7.66990524,156.49,156.44,18.64964886]
[1750040076124,7.66990524,156.49,156.44,26.3195541]
[1750040076851,4.7255541,156.49,156.44,23.37520296]
[1750040077440,4.7255541,156.48,156.44,18.64964886]
[1750040078650,4.7255541,156.46,156.43,0.37147702]
[1750040079317,6.96,156.49,156.43,0.37147702]
[1750040079318,4.7255541,156.45,156.43,0.37147702]
[1750040080035,6.96,156.49,156.43,0.37147702]
[1750040080036,4.7255541,156.44,156.43,0.37147702]
[1750040080211,4.7255541,156.45,156.43,0.37147702]
[1750040080414,4.7255541,156.46,156.43,0.37147702]
[1750040080718,26.0,156.48,156.43,0.37147702]
[1750040080918,11.6855541,156.48,156.44,18.64964886]
[1750040081542,6.96,156.48,156.44,18.64964886]
[1750040081850,6.96,156.48,156.47,23.37520296]
[1750040082230,6.96,156.48,156.47,23.6595261]
[1750040082631,6.96,156.56,156.48,18.933972]
[1750040082832,6.96,156.56,156.53,7.69179229]
[1750040083050,6.96,156.56,156.48,18.64964886]
[1750040083349,6.96,156.56,156.47,54.3]
[1750040083350,14.65179229,156.56,156.51,26.34144115]
[1750040083523,14.65179229,156.56,156.49,0.28432314]
[1750040083723,14.65179229,156.56,156.51,7.69179229]
[1750040087358,7.69179229,156.55,156.51,18.64964886]
[1750040089254,7.69179229,156.55,156.49,0.28432314]
[1750040089471,6.96,156.56,156.54,7.69179229]
[1750040089666,7.69179229,156.62,156.56,0.28432314]
[1750040089831,7.69179229,156.63,156.59,18.64964886]
[1750040090158,7.69179229,156.61,156.53,26.0]
[1750040090336,7.69179229,156.58,156.54,18.64964886]
[1750040090534,26.0,156.61,156.54,18.64964886]
[1750040092155,26.0,156.61,156.53,7.97611543]
[1750040092156,7.69179229,156.61,156.56,26.34144115]
[1750040092361,7.69179229,156.62,156.56,26.34144115]
[1750040092529,6.92,156.64,156.59,26.34144115]
[1750040092730,14.61179229,156.64,156.57,0.28432314]
[1750040092961,7.69179229,156.63,156.57,0.28432314]
[1750040093441,14.61179229,156.64,156.57,0.28432314]
[1750040093642,6.92,156.64,156.6,7.69179229]
[1750040094351,6.92,156.64,156.62,7.69179229]
[1750040094529,6.92,156.64,156.63,26.34144115]
[1750040095359,6.92,156.64,156.63,26.62576429]
[1750040095657,6.92,156.64,156.61,18.64964886]
[1750040096040,6.92,156.64,156.63,26.34144115]
[1750040096357,7.69179229,156.71,156.63,26.62576429]
[1750040096575,33.69179229,156.71,156.66,7.69179229]
[1750040097161,7.69179229,156.71,156.66,7.69179229]
[1750040097342,79.5782,156.72,156.66,7.69179229]
[1750040097343,105.5782,156.72,156.66,7.69179229]
[1750040097659,74.03179229,156.72,156.65,18.933972]
[1750040097873,100.03179229,156.72,156.67,7.69179229]
[1750040098047,7.69179229,156.71,156.66,7.69179229]
[1750040098939,92.34,156.72,156.67,7.69179229]
[1750040099139,100.03179229,156.72,156.67,7.69179229]
[1750040099360,66.34,156.72,156.67,7.69179229]
[1750040099532,74.03179229,156.72,156.67,7.69179229]
[1750040099737,7.69179229,156.71,156.66,7.69179229]
[1750040101270,66.34,156.72,156.7,18.64964886]
[1750040101484,6.92,156.74,156.72,18.64964886]
[1750040101767,6.92,156.74,156.69,18.64964886]
[1750040101964,6.92,156.74,156.71,7.69179229]
[1750040102347,6.92,156.74,156.73,26.34144115]
[1750040102560,6.92,156.74,156.73,26.62576429]
[1750040102767,7.69179229,156.81,156.73,26.62576429]
[1750040103066,7.69179229,156.81,156.76,7.69179229]
[1750040103245,6.92,156.82,156.78,7.69179229]
[1750040103444,6.92,156.82,156.79,26.34144115]
[1750040103844,6.92,156.82,156.76,18.933972]
[1750040104150,6.92,156.82,156.81,18.933972]
[1750040104364,14.61179229,156.82,156.78,18.64964886]
[1750040104566,14.61179229,156.82,156.75,8.264]
[1750040104567,7.69179229,156.79,156.75,1.611]
[1750040104861,7.69179229,156.78,156.73,7.69179229]
[1750040105061,7.69179229,156.76,156.72,18.64964886]
[1750040105269,32.3069,156.81,156.71,1.611]
[1750040105581,7.69179229,156.78,156.73,7.69179229]
[1750040105863,7.69179229,156.77,156.72,26.48360272]
[1750040106466,7.69179229,156.76,156.71,1.611]
[1750040106865,7.69179229,156.76,156.71,9.30279229]
[1750040107241,7.69179229,156.75,156.71,18.64964886]
[1750040107868,7.69179229,156.73,156.68,7.69179229]
[1750040108052,7.69179229,156.72,156.67,1.5893]
[1750040108539,6.3069,156.81,156.71,7.69179229]
[1750040108737,6.9,156.8,156.76,18.64964886]
[1750040108966,6.9,156.8,156.76,18.933972]
[1750040109164,6.9,156.8,156.79,7.97611543]
[1750040109374,6.9,156.8,156.78,18.64964886]
[1750040109552,6.9,156.8,156.78,26.34144115]
[1750040109870,6.9,156.8,156.78,18.64964886]
[1750040110042,6.9,156.8,156.79,7.69179229]
[1750040110869,6.9,156.8,156.78,18.64964886]
[1750040111042,6.9,156.8,156.77,18.933972]
[1750040111461,6.9,156.8,156.75,18.64964886]
[1750040111462,7.69179229,156.79,156.75,18.64964886]
[1750040111667,7.69179229,156.77,156.73,18.64964886]
[1750040111858,7.69179229,156.79,156.75,18.64964886]
[1750040112253,7.69179229,156.78,156.74,0.14216157]
[1750040112462,7.69179229,156.78,156.73,7.69179229]
[1750040114269,7.69179229,156.79,156.74,7.69179229]
[1750040114447,6.9,156.8,156.75,7.69179229]
[1750040114650,7.69179229,156.76,156.71,18.64964886]
[1750040114846,26.0,156.77,156.71,18.64964886]
[1750040114847,7.69179229,156.75,156.71,18.64964886]
[1750040115158,26.0,156.77,156.7,7.69179229]
[1750040115372,26.0,156.77,156.71,7.69179229]
[1750040115670,7.69179229,156.76,156.71,7.69179229]
[1750040116057,7.69179229,156.76,156.69,0.14216157]
[1750040116263,7.69179229,156.76,156.71,18.64964886]
[1750040116558,7.69179229,156.76,156.71,7.69179229]
[1750040116766,8.33672314,156.83,156.71,7.69179229]
[1750040116767,8.4267,156.88,156.76,18.64964886]
[1750040116989,7.69179229,156.85,156.8,18.64964886]
[1750040117278,7.69179229,156.82,156.77,7.69179229]
[1750040117458,7.69179229,156.81,156.75,1.6512]
[1750040117661,7.69179229,156.81,156.76,26.34144115]
[1750040117855,7.69179229,156.83,156.76,18.64964886]
[1750040118376,7.69179229,156.82,156.77,7.69179229]
[1750040118560,7.69179229,156.82,156.78,18.933972]
[1750040118758,7.69179229,156.84,156.79,7.69179229]
[1750040119077,33.69179229,156.85,156.79,7.69179229]
[1750040119260,7.69179229,156.84,156.79,7.69179229]
[1750040119460,26.0,156.85,156.76,18.64964886]
[1750040119461,7.69179229,156.83,156.77,0.28432314]
[1750040119668,26.0,156.85,156.78,7.69179229]
[1750040119861,7.69179229,156.81,156.76,18.64964886]
[1750040120060,26.0,156.85,156.76,26.34144115]
[1750040120291,7.69179229,156.81,156.76,26.34144115]
[1750040120792,7.69179229,156.82,156.76,18.64964886]
[1750040120994,6.37552554,156.85,156.75,1.6512]
[1750040121175,7.69179229,156.79,156.75,18.64964886]
[1750040121564,26.0,156.85,156.79,18.64964886]
[1750040121895,8.4267,156.88,156.83,7.69179229]
[1750040121896,14.59179229,156.88,156.83,7.69179229]
[1750040122058,14.59179229,156.88,156.82,7.69179229]
[1750040122059,26.0,156.87,156.82,7.69179229]
[1750040122253,33.69179229,156.87,156.81,7.69179229]
[1750040122571,33.69179229,156.87,156.8,18.933972]
[1750040122572,7.69179229,156.87,156.8,18.933972]
[1750040122885,33.69179229,156.87,156.82,7.69179229]
[1750040123066,7.69179229,156.87,156.82,7.69179229]
[1750040123579,7.69179229,156.86,156.81,7.69179229]
[1750040123982,7.69179229,156.87,156.82,7.69179229]
[1750040124485,7.69179229,156.83,156.78,7.69179229]
[1750040124687,7.69179229,156.83,156.76,18.64964886]
[1750040124688,26.0,156.83,156.76,18.64964886]
[1750040124889,7.69179229,156.79,156.75,1.5011]
[1750040125197,7.69179229,156.79,156.74,7.69179229]
[1750040126072,27.5665,156.84,156.75,26.34144115]
[1750040126284,7.69179229,156.78,156.73,7.69179229]
[1750040126464,7.69179229,156.79,156.74,7.69179229]
[1750040126662,7.69179229,156.77,156.66,1.6325]
[1750040126865,7.69179229,156.76,156.71,7.69179229]
[1750040127059,6.88,156.78,156.75,18.64964886]
[1750040127471,14.57179229,156.78,156.74,18.64964886]
[1750040127679,7.69179229,156.77,156.74,18.64964886]
[1750040127966,7.69179229,156.75,156.66,1.6325]
[1750040128194,32.88,156.78,156.66,1.6325]
[1750040128195,7.69179229,156.72,156.67,7.69179229]
[1750040128395,32.88,156.78,156.66,1.6325]
[1750040128396,7.69179229,156.73,156.68,7.69179229]
[1750040128698,26.0,156.75,156.7,7.97611543]
[1750040128904,7.69179229,156.74,156.69,7.69179229]
[1750040129278,7.69179229,156.78,156.73,7.69179229]
[1750040129599,6.88,156.78,156.77,26.34144115]
[1750040129758,6.88,156.78,156.77,26.62576429]
[1750040131203,6.88,156.78,156.75,1.6156]
[1750040131500,6.88,156.78,156.75,7.69179229]
[1750040131700,6.88,156.78,156.74,7.69179229]
[1750040132308,6.88,156.78,156.71,27.5505]
[1750040132309,14.57179229,156.78,156.72,18.64964886]
[1750040132469,7.69179229,156.77,156.72,26.34144115]
[1750040134180,6.88,156.78,156.77,18.64964886]
[1750040134383,6.88,156.78,156.77,26.62576429]
[1750040134578,6.88,156.78,156.75,7.69179229]
[1750040134775,14.57179229,156.78,156.74,18.64964886]
[1750040134975,7.69179229,156.77,156.72,18.64964886]
[1750040135387,6.88,156.78,156.72,26.34144115]
[1750040135592,14.57179229,156.78,156.72,18.64964886]
[1750040135803,6.88,156.78,156.72,26.34144115]
[1750040135992,14.57179229,156.78,156.73,7.69179229]
[1750040136305,7.69179229,156.77,156.72,26.34144115]
[1750040137013,7.69179229,156.76,156.71,7.69179229]
[1750040137176,7.69179229,156.75,156.71,18.64964886]
[1750040137534,7.69179229,156.74,156.7,18.64964886]
[1750040137672,7.69179229,156.73,156.68,18.64964886]
[1750040137867,7.69179229,156.74,156.68,26.34144115]
[1750040138073,7.69179229,156.72,156.66,7.69179229]
[1750040138684,7.69179229,156.71,156.67,18.64964886]
[1750040139398,32.4283,156.75,156.66,18.64964886]
[1750040139696,32.4283,156.75,156.63,7.69179229]
[1750040139697,7.69179229,156.69,156.63,7.69179229]
[1750040139883,7.69179229,156.67,156.62,26.34144115]
[1750040140075,7.69179229,156.67,156.63,0.28432314]
[1750040140271,7.69179229,156.67,156.62,18.64964886]
[1750040140482,7.69179229,156.67,156.62,26.34144115]
[1750040140912,6.88,156.68,156.64,7.69179229]
[1750040141076,6.88,156.68,156.65,7.69179229]
[1750040142298,6.88,156.68,156.64,0.28432314]
[1750040142603,6.88,156.71,156.66,7.69179229]
[1750040142785,14.57179229,156.71,156.65,7.69179229]
[1750040142991,7.69179229,156.68,156.64,0.28432314]
[1750040143186,7.69179229,156.69,156.65,18.64964886]
[1750040143593,14.57179229,156.71,156.65,7.69179229]
[1750040143911,6.88,156.71,156.64,0.28432314]
[1750040144090,6.88,156.71,156.69,7.69179229]
[1750040144414,6.88,156.71,156.7,7.69179229]
[1750040145042,6.88,156.71,156.7,7.97611543]
[1750040146105,6.88,156.71,156.7,26.62576429]
[1750040146879,6.88,156.71,156.7,18.64964886]
[1750040147082,6.88,156.71,156.7,26.34144115]
[1750040147484,6.88,156.71,156.7,26.62576429]
[1750040148499,6.88,156.71,156.68,7.69179229]
[1750040148806,6.88,156.71,156.7,7.69179229]
[1750040149009,6.88,156.71,156.69,7.69179229]
[1750040149217,6.88,156.71,156.7,18.64964886]
[1750040149417,6.88,156.71,156.7,26.48360272]
[1750040149585,6.88,156.71,156.7,0.28432314]
[1750040149781,6.88,156.71,156.7,7.97611543]
[1750040151313,6.88,156.71,156.66,18.64964886]
[1750040151314,6.88,156.71,156.69,7.69179229]
[1750040151513,6.88,156.71,156.66,18.64964886]
[1750040151689,6.88,156.71,156.7,7.97611543]
[1750040152106,6.88,156.71,156.7,26.62576429]
[1750040155595,6.88,156.71,156.7,18.933972]
[1750040155796,6.88,156.71,156.7,26.62576429]
[1750040156193,14.55179229,156.77,156.71,18.933972]
[1750040156421,14.55179229,156.77,156.72,7.69179229]
[1750040156726,6.86,156.77,156.72,7.69179229]
[1750040157719,6.86,156.77,156.76,7.69179229]
[1750040158123,6.86,156.77,156.76,26.34144115]
[1750040160529,6.86,156.77,156.66,6.38295842]
[1750040160736,6.86,156.77,156.71,46.78964886]
[1750040160911,6.86,156.77,156.71,72.78964886]
[1750040161113,6.86,156.77,156.73,7.69179229]
[1750040161415,7.69179229,156.76,156.7,1.6095]
[1750040161605,6.86,156.77,156.74,26.34144115]
[1750040161808,6.86,156.77,156.74,7.69179229]
[1750040162920,6.86,156.77,156.74,18.933972]
[1750040163305,6.86,156.77,156.74,7.97611543]
[1750040163649,6.86,156.77,156.73,0.28432314]
[1750040163838,7.69179229,156.76,156.71,18.64964886]
[1750040164020,7.69179229,156.75,156.71,18.64964886]
[1750040164419,6.86,156.77,156.74,18.64964886]
[1750040164648,6.86,156.77,156.74,26.34144115]
[1750040165145,6.86,156.77,156.75,7.69179229]
[1750040165453,6.86,156.77,156.74,18.933972]
[1750040165810,6.86,156.77,156.74,18.64964886]
[1750040166559,14.55179229,156.77,156.74,18.64964886]
[1750040166759,14.55179229,156.77,156.72,7.97611543]
[1750040166908,7.69179229,156.76,156.71,18.64964886]
[1750040167259,7.69179229,156.75,156.71,18.64964886]
[1750040167426,7.69179229,156.73,156.68,18.64964886]
[1750040167619,7.69179229,156.7,156.64,7.69179229]
[1750040167814,7.69179229,156.69,156.63,9.22099229]
[1750040168126,7.69179229,156.69,156.64,18.933972]
[1750040168335,7.69179229,156.69,156.63,7.69179229]
[1750040168532,7.69179229,156.68,156.62,7.69179229]
[1750040168714,26.0,156.71,156.63,18.64964886]
[1750040168715,7.69179229,156.67,156.63,18.64964886]
[1750040169109,7.69179229,156.68,156.63,18.64964886]
[1750040169330,7.69179229,156.69,156.6,18.64964886]
[1750040169534,7.69179229,156.69,156.64,7.69179229]
[1750040170010,7.69179229,156.68,156.63,7.97611543]
[1750040170204,7.69179229,156.68,156.63,0.28432314]
[1750040170434,7.69179229,156.68,156.64,0.28432314]
[1750040170744,7.69179229,156.66,156.59,27.6247]
[1750040170912,6.86,156.67,156.65,26.34144115]
[1750040171120,7.69179229,156.71,156.65,26.34144115]
[1750040171121,6.86,156.69,156.65,26.34144115]
[1750040171327,6.86,156.69,156.65,18.64964886]
[1750040172158,6.86,156.69,156.65,7.69179229]
[1750040172938,6.86,156.69,156.66,7.69179229]
[1750040173550,6.86,156.69,156.65,7.69179229]
[1750040173854,14.55179229,156.69,156.65,18.64964886]
[1750040174228,14.55179229,156.69,156.64,0.28432314]
[1750040174435,14.55179229,156.69,156.65,18.64964886]
[1750040174954,14.55179229,156.69,156.63,7.69179229]
[1750040175362,7.69179229,156.67,156.63,18.64964886]
[1750040175527,7.69179229,156.64,156.6,18.64964886]
[1750040176132,7.69179229,156.64,156.58,7.69179229]
[1750040176442,7.69179229,156.63,156.59,18.64964886]
[1750040176849,7.69179229,156.64,156.59,18.64964886]
[1750040177038,7.69179229,156.63,156.59,18.64964886]
[1750040177528,7.69179229,156.62,156.58,18.64964886]
[1750040177728,7.69179229,156.63,156.58,18.64964886]
[1750040177929,7.69179229,156.63,156.58,26.34144115]
[1750040178142,7.69179229,156.63,156.58,18.64964886]
[1750040178358,7.69179229,156.62,156.58,18.64964886]
[1750040178677,7.69179229,156.66,156.61,7.69179229]
[1750040178820,7.69179229,156.66,156.61,18.64964886]
[1750040179839,7.69179229,156.66,156.61,26.34144115]
[1750040181264,7.69179229,156.67,156.62,7.69179229]
[1750040181560,7.69179229,156.67,156.63,18.64964886]
[1750040181762,40.55179229,156.69,156.64,7.69179229]
[1750040181965,32.86,156.69,156.64,7.69179229]
[1750040182139,32.86,156.69,156.65,7.69179229]
[1750040182340,6.86,156.69,156.65,7.69179229]
[1750040183134,14.55179229,156.69,156.63,7.69179229]
[1750040183335,7.69179229,156.67,156.63,18.64964886]
[1750040183637,26.0,156.68,156.6,18.64964886]
[1750040183858,7.69179229,156.66,156.58,26.0]
[1750040184064,7.69179229,156.66,156.6,7.69179229]
[1750040185338,26.0,156.68,156.6,7.69179229]
[1750040185546,7.69179229,156.67,156.62,7.69179229]
[1750040185839,7.69179229,156.68,156.63,7.69179229]
[1750040186765,7.69179229,156.67,156.63,18.64964886]
[1750040186968,14.55179229,156.69,156.64,7.69179229]
[1750040187165,6.86,156.69,156.64,7.69179229]
[1750040187374,7.69179229,156.68,156.63,26.34144115]
[1750040188170,6.86,156.69,156.63,26.34144115]
[1750040188471,6.86,156.69,156.65,7.69179229]
[1750040188670,6.86,156.69,156.63,18.64964886]
[1750040188671,7.69179229,156.68,156.63,26.62576429]
[1750040188841,7.69179229,156.68,156.63,18.64964886]
[1750040189936,7.69179229,156.68,156.63,26.34144115]
[1750040190765,6.86,156.69,156.63,26.34144115]
[1750040190970,7.69179229,156.68,156.63,26.34144115]
[1750040191554,7.69179229,156.68,156.63,18.64964886]
[1750040191950,7.69179229,156.67,156.63,18.64964886]
[1750040192982,6.86,156.69,156.61,18.64964886]
[1750040192983,7.69179229,156.64,156.61,18.64964886]
[1750040193284,7.69179229,156.62,156.53,9.1773197]
[1750040193448,7.69179229,156.6,156.53,6.039]